fUSD/lending_fUSD_20250215
["ID","MTS","AMOUNT","RATE_DAILY","PERIOD"]
[353186520,1739635843498,-656.99,0.00011041,2]
[353186521,1739635843508,-500.0,0.00011041,2]
[353186522,1739635843518,-500.0,0.00011041,2]
[353186523,1739635843527,-500.0,0.00011041,2]
[353186524,1739635843537,-460.16,0.00011041,2]
[353186525,1739635843549,-863.55,0.00011041,2]
[353186526,1739635843559,-500.0,0.00011041,2]
[353186527,1739635843569,-500.0,0.00011041,2]
[353186528,1739635843578,-788.54,0.00011041,2]
[353186529,1739635843588,-150.0,0.00011042,2]
[353186530,1739635843597,-150.0,0.00011045,2]
[353186531,1739635843607,-150.0,0.00011045,2]
[353186532,1739635843620,-150.0,0.00011046,2]
[353186533,1739635843635,-150.0,0.00011047,2]
[353186534,1739635843648,-150.0,0.00011048,2]
[353186535,1739635843660,-150.0,0.00011049,2]
[353186536,1739635843674,-150.0,0.00011051,2]
[353186537,1739635843686,-150.0,0.00011058,2]
[353186538,1739635843699,-1000.0,0.0001106,2]
[353186539,1739635843711,-150.0,0.00011062,2]
[353186540,1739635843725,-150.0,0.00011062,2]
[353186541,1739635843737,-150.0,0.00011065,2]
[353186542,1739635843751,-150.0,0.00011065,2]
[353186543,1739635843765,-150.0,0.00011069,2]
[353186544,1739635843779,-150.0,0.00011071,2]
[353186545,1739635843791,-150.0,0.00011071,2]
[353186546,1739635843803,-500.0,0.00011072,2]
[353186547,1739635843814,-1541.64,0.00011072,2]
[353186548,1739635843824,-717.57,0.00011072,2]
[353186549,1739635843837,-1361.5,0.00011072,2]
[353186550,1739635843852,-640.09,0.00011072,2]
[353186551,1739635843864,-762.4,0.00011072,2]
[353186552,1739635843877,-1208.32,0.00011072,2]
[353186553,1739635843889,-1470.96,0.00011072,2]
[353186554,1739635843902,-953.39,0.00011072,2]
[353186555,1739635843915,-500.0,0.00011072,2]
[353186556,1739635843928,-1630.15,0.00011072,2]
[353186557,1739635843939,-1493.03,0.00011072,2]
[353186558,1739635843951,-500.0,0.00011072,2]
[353186559,1739635843965,-771.25,0.00011072,2]
[353186560,1739635843976,-1485.45,0.00011072,2]
[353186561,1739635843989,-1039.35,0.00011072,2]
[353186562,1739635844001,-567.13,0.00011072,2]
[353186563,1739635844013,-765.56,0.00011072,2]
[353186564,1739635844025,-500.0,0.00011072,2]
[353186565,1739635844037,-951.97,0.00011072,2]
[353186566,1739635844050,-1887.1,0.00011072,2]
[353186567,1739635844063,-652.61,0.00011072,2]
[353186568,1739635844076,-696.9,0.00011072,2]
[353186569,1739635844088,-500.0,0.00011072,2]
[353186570,1739635844100,-1612.86,0.00011072,2]
[353186571,1739635844112,-396.69865784,0.00011073,2]
[353186572,1739635844123,-758.77198936,0.00011073,2]
[353186573,1739635844133,-247.40308609,0.00011073,2]
[353186574,1739635844144,-3773.72390952,0.00011073,2]
[353186575,1739635844157,-150.0,0.00011075,2]
[353186576,1739635844172,-150.0,0.00011076,2]
[353186577,1739635844184,-150.0,0.00011076,2]
[353186578,1739635844196,-150.0,0.0001108,2]
[353186579,1739635844207,-150.0,0.00011082,2]
[353186580,1739635844218,-150.0,0.00011082,2]
[353186581,1739635844229,-150.0,0.0001109,2]
[353186582,1739635844242,-150.0,0.00011094,2]
[353186583,1739635844256,-150.0,0.00011094,2]
[353186584,1739635844268,-500.0,0.00011096,2]
[353186585,1739635844279,-150.0,0.00011097,2]
[353186586,1739635844291,-150.0,0.00011097,2]
[353186587,1739635844302,-1870.0,0.00011098,2]
[353186588,1739635844314,-3942.57390317,0.00011099,2]
[353186589,1739635844325,-3942.57390313,0.00011099,2]
[353186590,1739635844336,-3942.57390313,0.00011099,2]
[353186591,1739635844347,-3942.57390313,0.00011099,2]
[353186592,1739635844358,-3942.57390313,0.00011099,2]
[353186593,1739635844373,-3942.57390313,0.00011099,2]
[353186594,1739635844384,-3942.57390313,0.00011099,2]
[353186595,1739635844396,-3942.57390313,0.00011099,2]
[353186596,1739635844408,-3942.57390313,0.00011099,2]
[353186597,1739635844419,-3942.57390313,0.00011099,2]
[353186598,1739635844430,-2669.6274818,0.00011099,2]
[353186599,1739635844441,-2669.62748174,0.00011099,2]
[353186600,1739635844452,-2669.62748174,0.00011099,2]
[353186601,1739635844462,-2669.62748174,0.00011099,2]
[353186602,1739635844473,-2669.62748174,0.00011099,2]
[353186603,1739635844485,-2669.62748174,0.00011099,2]
[353186604,1739635844496,-2669.62748174,0.00011099,2]
[353186605,1739635844508,-2669.62748174,0.00011099,2]
[353186606,1739635844519,-2669.62748174,0.00011099,2]
[353186607,1739635844531,-2669.62748174,0.00011099,2]
[353186608,1739635844543,-2000.0,0.000111,2]
[353186609,1739635844554,-150.0,0.000111,2]
[353186610,1739635844564,-167.99,0.000111,2]
[353186611,1739635844575,-439.73,0.000111,2]
[353186612,1739635844585,-150.0,0.00011101,2]
[353186613,1739635844598,-150.0,0.00011101,2]
[353186614,1739635844609,-150.0,0.00011111,2]
[353186615,1739635844620,-150.0,0.00011113,2]
[353186616,1739635844632,-150.0,0.00011118,2]
[353186617,1739635844644,-150.0,0.00011119,2]
[353186618,1739635844656,-150.0,0.00011119,2]
[353186619,1739635844668,-150.0,0.00011121,2]
[353186620,1739635844682,-150.0,0.00011121,2]
[353186621,1739635844692,-2000.0,0.00011122,2]
[353186622,1739635844704,-500.0,0.00011122,2]
[353186623,1739635844716,-374.41,0.00011122,2]
[353186624,1739635844727,-1803.54,0.00011122,2]
[353186625,1739635844737,-1022.7,0.00011122,2]
[353186626,1739635844750,-652.9,0.00011122,2]
[353186627,1739635844763,-341.438422,0.00011122,2]
[353186628,1739635844775,-566.16,0.00011122,2]
[353186629,1739635844787,-648.402621,0.00011122,2]
[353186630,1739635844799,-1098.89,0.00011122,2]
[353186631,1739635844810,-500.0,0.00011122,2]
[353186632,1739635844822,-1073.39,0.00011122,2]
[353186633,1739635844834,-1379.12,0.00011122,2]
[353186634,1739635844845,-1403.92,0.00011122,2]
[353186635,1739635844857,-986.44,0.00011122,2]
[353186636,1739635844869,-1174.4,0.00011122,2]
[353186637,1739635844881,-914.14,0.00011122,2]
[353186638,1739635844892,-1145.02,0.00011122,2]
[353186639,1739635844903,-2125.75,0.00011122,2]
[353186640,1739635844913,-1243.02,0.00011122,2]
[353186641,1739635844924,-1438.55,0.00011122,2]
[353186642,1739635844936,-500.0,0.00011122,2]
[353186643,1739635844947,-1277.19,0.00011122,2]
[353186644,1739635844959,-500.0,0.00011123,2]
[353186645,1739635844970,-500.0,0.00011123,2]
[353186646,1739635844982,-500.0,0.00011123,2]
[353186647,1739635844994,-371.01,0.00011123,2]
[353186648,1739635845005,-500.0,0.00011123,2]
[353186649,1739635845017,-500.0,0.00011123,2]
[353186650,1739635845028,-500.0,0.00011123,2]
[353186651,1739635845039,-500.0,0.00011123,2]
[353186652,1739635845051,-500.0,0.00011123,2]
[353186653,1739635845062,-346.55,0.00011123,2]
[353186654,1739635845073,-500.0,0.00011123,2]
[353186655,1739635845084,-560.48,0.00011123,2]
[353186656,1739635845096,-500.0,0.00011123,2]
[353186657,1739635845107,-1841.5,0.00011123,2]
[353186658,1739635845118,-500.0,0.00011123,2]
[353186659,1739635845130,-500.0,0.00011123,2]
[353186660,1739635845140,-500.0,0.00011123,2]
[353186661,1739635845152,-500.0,0.00011123,2]
[353186662,1739635845162,-500.0,0.00011123,2]
[353186663,1739635845174,-500.0,0.00011123,2]
[353186664,1739635845185,-500.0,0.00011123,2]
[353186665,1739635845195,-500.0,0.00011123,2]
[353186666,1739635845207,-500.0,0.00011123,2]
[353186667,1739635845219,-628.16,0.00011123,2]
[353186668,1739635845230,-500.0,0.00011123,2]
[353186669,1739635845241,-500.0,0.00011123,2]
[353186670,1739635845253,-500.0,0.00011123,2]
[353186671,1739635845264,-500.0,0.00011123,2]
[353186672,1739635845275,-332.72646896,0.00011123,2]
[353186673,1739635845286,-500.0,0.00011123,2]
[353186674,1739635845297,-500.0,0.00011123,2]
[353186675,1739635845309,-500.0,0.00011123,2]
[353186676,1739635845320,-355.9,0.00011123,2]
[353186679,1739635845332,-500.0,0.00011123,2]
[353186681,1739635845343,-500.0,0.00011123,2]
[353186683,1739635845354,-500.0,0.00011123,2]
[353186684,1739635845366,-500.0,0.00011123,2]
[353186685,1739635845376,-500.0,0.00011123,2]
[353186686,1739635845387,-530.64,0.00011123,2]
[353186687,1739635845398,-500.0,0.00011123,2]
[353186688,1739635845409,-500.0,0.00011123,2]
[353186689,1739635845421,-500.0,0.00011123,2]
[353186690,1739635845432,-702.31,0.00011123,2]
[353186691,1739635845444,-500.0,0.00011123,2]
[353186692,1739635845455,-500.0,0.00011123,2]
[353186693,1739635845466,-500.0,0.00011123,2]
[353186694,1739635845477,-775.61,0.00011123,2]
[353186695,1739635845489,-500.0,0.00011123,2]
[353186696,1739635845501,-500.0,0.00011123,2]
[353186697,1739635845513,-500.0,0.00011123,2]
[353186698,1739635845524,-500.0,0.00011123,2]
[353186699,1739635845536,-500.0,0.00011123,2]
[353186700,1739635845547,-599.57,0.00011123,2]
[353186701,1739635845558,-500.0,0.00011123,2]
[353186702,1739635845569,-691.39,0.00011123,2]
[353186703,1739635845581,-500.0,0.00011123,2]
[353186704,1739635845592,-500.0,0.00011123,2]
[353186705,1739635845601,-500.0,0.00011123,2]
[353186706,1739635845611,-500.0,0.00011123,2]
[353186707,1739635845621,-592.11,0.00011123,2]
[353186708,1739635845630,-500.0,0.00011123,2]
[353186709,1739635845639,-500.0,0.00011123,2]
[353186710,1739635845649,-500.0,0.00011123,2]
[353186711,1739635845658,-500.0,0.00011123,2]
[353186712,1739635845668,-500.0,0.00011123,2]
[353186713,1739635845681,-349.48,0.00011123,2]
[353186714,1739635845690,-362.89,0.00011123,2]
[353186715,1739635845699,-354.19,0.00011123,2]
[353186716,1739635845709,-500.0,0.00011123,2]
[353186717,1739635845719,-500.0,0.00011123,2]
[353186718,1739635845728,-500.0,0.00011123,2]
[353186719,1739635845738,-500.0,0.00011123,2]
[353186720,1739635845748,-640.56,0.00011123,2]
[353186721,1739635845758,-500.0,0.00011123,2]
[353186725,1739635846040,-500.0,0.00011123,2]
[353186728,1739635846059,-500.0,0.00011123,2]
[353186730,1739635846069,-500.0,0.00011123,2]
[353186731,1739635846079,-577.3,0.00011123,2]
[353186733,1739635846089,-500.0,0.00011123,2]
[353186734,1739635846099,-500.0,0.00011123,2]
[353186735,1739635846109,-550.69,0.00011123,2]
[353186736,1739635846118,-577.91,0.00011123,2]
[353186737,1739635846128,-500.0,0.00011123,2]
[353186738,1739635846138,-500.0,0.00011123,2]
[353186739,1739635846148,-568.1,0.00011123,2]
[353186740,1739635846157,-315.16,0.00011123,2]
[353186741,1739635846166,-500.0,0.00011123,2]
[353186742,1739635846176,-500.0,0.00011123,2]
[353186743,1739635846185,-411.11926345,0.00011123,2]
[353186744,1739635846195,-225.75,0.00011123,2]
[353186745,1739635846205,-500.0,0.00011123,2]
[353186746,1739635846219,-500.0,0.00011123,2]
[353186747,1739635846228,-500.0,0.00011123,2]
[353186748,1739635846238,-500.0,0.00011123,2]
[353186749,1739635846248,-500.0,0.00011123,2]
[353186750,1739635846258,-500.0,0.00011123,2]
[353186751,1739635846267,-500.0,0.00011123,2]
[353186752,1739635846277,-456.73,0.00011123,2]
[353186753,1739635846293,-416.07,0.00011123,2]
[353186754,1739635846303,-841.17,0.00011123,2]
[353186755,1739635846314,-500.0,0.00011123,2]
[353186756,1739635846323,-500.0,0.00011123,2]
[353186757,1739635846333,-500.0,0.00011123,2]
[353186758,1739635846343,-500.0,0.00011123,2]
[353186759,1739635846353,-500.0,0.00011123,2]
[353186760,1739635846364,-500.0,0.00011123,2]
[353186761,1739635846374,-870.43,0.00011123,2]
[353186762,1739635846384,-500.0,0.00011123,2]
[353186763,1739635846393,-500.0,0.00011123,2]
[353186764,1739635846403,-500.0,0.00011123,2]
[353186765,1739635846412,-500.0,0.00011123,2]
[353186766,1739635846422,-500.0,0.00011123,2]
[353186767,1739635846432,-500.0,0.00011123,2]
[353186768,1739635846441,-224.1,0.00011123,2]
[353186769,1739635846451,-500.0,0.00011123,2]
[353186770,1739635846460,-500.0,0.00011123,2]
[353186771,1739635846469,-500.0,0.00011123,2]
[353186772,1739635846479,-743.12,0.00011123,2]
[353186773,1739635846489,-500.0,0.00011123,2]
[353186774,1739635846498,-500.0,0.00011123,2]
[353186775,1739635846508,-500.0,0.00011123,2]
[353186776,1739635846518,-500.0,0.00011123,2]
[353186777,1739635846527,-500.0,0.00011123,2]
[353186778,1739635846537,-500.0,0.00011123,2]
[353186779,1739635846546,-500.0,0.00011123,2]
[353186780,1739635846555,-500.0,0.00011123,2]
[353186781,1739635846566,-500.0,0.00011123,2]
[353186782,1739635846575,-500.0,0.00011123,2]
[353186783,1739635846584,-500.0,0.00011123,2]
[353186784,1739635846594,-500.0,0.00011123,2]
[353186785,1739635846604,-500.0,0.00011123,2]
[353186786,1739635846613,-500.0,0.00011123,2]
[353186787,1739635846622,-500.0,0.00011123,2]
[353186788,1739635846631,-691.34,0.00011123,2]
[353186789,1739635846641,-500.0,0.00011123,2]
[353186790,1739635846650,-500.0,0.00011123,2]
[353186791,1739635846659,-521.63,0.00011123,2]
[353186792,1739635846671,-500.0,0.00011123,2]
[353186793,1739635846682,-500.0,0.00011123,2]
[353186794,1739635846692,-609.47,0.00011123,2]
[353186795,1739635846702,-500.0,0.00011123,2]
[353186796,1739635846713,-500.0,0.00011123,2]
[353186797,1739635846723,-500.0,0.00011123,2]
[353186798,1739635846733,-500.0,0.00011123,2]
[353186799,1739635846742,-500.0,0.00011123,2]
[353186800,1739635846754,-603.19,0.00011123,2]
[353186801,1739635846763,-500.0,0.00011123,2]
[353186802,1739635846773,-500.0,0.00011123,2]
[353186803,1739635846783,-806.33,0.00011123,2]
[353186804,1739635846792,-489.87,0.00011123,2]
[353186805,1739635846801,-401.46,0.00011123,2]
[353186806,1739635846811,-500.0,0.00011123,2]
[353186807,1739635846821,-500.0,0.00011123,2]
[353186808,1739635846831,-1089.1,0.00011123,2]
[353186809,1739635846841,-500.0,0.00011123,2]
[353186810,1739635846850,-1372.61,0.00011123,2]
[353186811,1739635846860,-500.0,0.00011123,2]
[353186812,1739635846869,-500.0,0.00011123,2]
[353186813,1739635846878,-500.0,0.00011123,2]
[353186814,1739635846888,-708.03,0.00011123,2]
[353186815,1739635846897,-500.0,0.00011123,2]
[353186816,1739635846907,-1515.94,0.00011123,2]
[353186817,1739635846917,-500.0,0.00011123,2]
[353186818,1739635846926,-500.0,0.00011123,2]
[353186819,1739635846937,-1579.51,0.00011123,2]
[353186820,1739635846946,-500.0,0.00011123,2]
[353186821,1739635846957,-1172.12,0.00011123,2]
[353186822,1739635846966,-500.0,0.00011123,2]
[353186823,1739635846976,-1090.57,0.00011123,2]
[353186824,1739635846986,-500.0,0.00011123,2]
[353186825,1739635846996,-500.0,0.00011123,2]
[353186826,1739635847005,-1982.71,0.00011123,2]
[353186827,1739635847015,-898.44,0.00011123,2]
[353186828,1739635847025,-631.8,0.00011123,2]
[353186829,1739635847034,-700.87,0.00011123,2]
[353186830,1739635847045,-4726.94,0.00011123,2]
[353186831,1739635847055,-1681.61,0.00011123,2]
[353186832,1739635847064,-500.0,0.00011123,2]
[353186833,1739635847075,-500.0,0.00011123,2]
[353186834,1739635847084,-500.0,0.00011123,2]
[353186835,1739635847094,-604.92,0.00011123,2]
[353186836,1739635847104,-500.0,0.00011123,2]
[353186837,1739635847114,-678.55,0.00011123,2]
[353186838,1739635847124,-1877.04,0.00011123,2]
[353186839,1739635847134,-1110.11,0.00011123,2]
[353186840,1739635847144,-500.0,0.00011123,2]
[353186841,1739635847154,-1009.11,0.00011123,2]
[353186842,1739635847164,-500.0,0.00011123,2]
[353186843,1739635847174,-997.37,0.00011123,2]
[353186844,1739635847184,-500.0,0.00011123,2]
[353186845,1739635847195,-3547.92,0.00011123,2]
[353186846,1739635847205,-798.95,0.00011123,2]
[353186847,1739635847214,-500.0,0.00011123,2]
[353186848,1739635847225,-500.0,0.00011123,2]
[353186849,1739635847234,-1245.2,0.00011123,2]
[353186850,1739635847243,-500.0,0.00011123,2]
[353186851,1739635847254,-531.46,0.00011123,2]
[353186852,1739635847263,-1771.41,0.00011123,2]
[353186853,1739635847273,-500.0,0.00011123,2]
[353186854,1739635847283,-500.0,0.00011123,2]
[353186855,1739635847293,-500.0,0.00011123,2]
[353186856,1739635847303,-500.0,0.00011123,2]
[353186857,1739635847313,-745.5,0.00011123,2]
[353186858,1739635847322,-860.59,0.00011123,2]
[353186859,1739635847332,-289.77,0.00011123,2]
[353186860,1739635847341,-551.07,0.00011123,2]
[353186861,1739635847351,-500.0,0.00011123,2]
[353186862,1739635847361,-500.0,0.00011123,2]
[353186863,1739635847370,-500.0,0.00011123,2]
[353186864,1739635847380,-500.0,0.00011123,2]
[353186865,1739635847390,-769.4,0.00011123,2]
[353186866,1739635847400,-839.83,0.00011123,2]
[353186867,1739635847409,-500.0,0.00011123,2]
[353186868,1739635847418,-500.0,0.00011123,2]
[353186869,1739635847428,-500.0,0.00011123,2]
[353186870,1739635847437,-500.0,0.00011123,2]
[353186871,1739635847447,-264.35,0.00011123,2]
[353186872,1739635847456,-500.0,0.00011123,2]
[353186873,1739635847466,-500.0,0.00011123,2]
[353186874,1739635847475,-1310.21,0.00011123,2]
[353186875,1739635847485,-500.0,0.00011123,2]
[353186876,1739635847495,-500.0,0.00011123,2]
[353186877,1739635847506,-777.57,0.00011123,2]
[353186878,1739635847515,-1025.29,0.00011123,2]
[353186879,1739635847525,-793.04,0.00011123,2]
[353186880,1739635847535,-699.36,0.00011123,2]
[353186881,1739635847545,-500.0,0.00011123,2]
[353186882,1739635847555,-971.11,0.00011123,2]
[353186883,1739635847564,-418.93,0.00011123,2]
[353186884,1739635847574,-500.0,0.00011123,2]
[353186885,1739635847584,-1516.41,0.00011123,2]
[353186886,1739635847594,-676.1,0.00011123,2]
[353186887,1739635847603,-500.0,0.00011123,2]
[353186888,1739635847613,-791.47,0.00011123,2]
[353186889,1739635847623,-500.0,0.00011123,2]
[353186890,1739635847633,-500.0,0.00011123,2]
[353186891,1739635847643,-500.0,0.00011123,2]
[353186892,1739635847653,-1048.16,0.00011123,2]
[353186893,1739635847663,-515.02,0.00011123,2]
[353186894,1739635847675,-1018.39,0.00011123,2]
[353186895,1739635847686,-852.11,0.00011123,2]
[353186896,1739635847696,-500.0,0.00011123,2]
[353186897,1739635847706,-345.75,0.00011123,2]
[353186898,1739635847716,-500.0,0.00011123,2]
[353186899,1739635847726,-500.0,0.00011123,2]
[353186900,1739635847735,-500.0,0.00011123,2]
[353186901,1739635847744,-2414.75,0.00011123,2]
[353186902,1739635847755,-1031.51,0.00011123,2]
[353186903,1739635847764,-500.0,0.00011123,2]
[353186904,1739635847773,-500.0,0.00011123,2]
[353186905,1739635847783,-500.0,0.00011123,2]
[353186906,1739635847792,-1010.08,0.00011123,2]
[353186907,1739635847801,-500.0,0.00011123,2]
[353186908,1739635847810,-500.0,0.00011123,2]
[353186909,1739635847820,-500.0,0.00011123,2]
[353186910,1739635847829,-500.0,0.00011123,2]
[353186911,1739635847838,-500.0,0.00011123,2]
[353186912,1739635847848,-500.0,0.00011123,2]
[353186913,1739635847857,-808.77,0.00011123,2]
[353186914,1739635847866,-500.0,0.00011123,2]
[353186915,1739635847876,-500.0,0.00011123,2]
[353186916,1739635847885,-219.04,0.00011123,2]
[353186917,1739635847895,-500.0,0.00011123,2]
[353186918,1739635847904,-603.65,0.00011123,2]
[353186919,1739635847914,-823.63,0.00011123,2]
[353186920,1739635847923,-788.73,0.00011123,2]
[353186921,1739635847933,-722.5,0.00011123,2]
[353186922,1739635847942,-612.07,0.00011123,2]
[353186923,1739635847952,-500.0,0.00011123,2]
[353186924,1739635847962,-656.99,0.00011123,2]
[353186925,1739635847971,-500.0,0.00011123,2]
[353186926,1739635847981,-500.0,0.00011123,2]
[353186927,1739635847991,-863.55,0.00011123,2]
[353186928,1739635848002,-500.0,0.00011123,2]
[353186929,1739635848012,-500.0,0.00011123,2]
[353186930,1739635848022,-788.54,0.00011123,2]
[353186931,1739635848031,-150.0,0.00011124,2]
[353186932,1739635848040,-150.0,0.00011129,2]
[353186933,1739635848051,-309.41,0.0001113,2]
[353186934,1739635848061,-150.0,0.00011134,2]
[353186935,1739635848071,-150.0,0.00011135,2]
[353186936,1739635848080,-150.0,0.00011137,2]
[353186937,1739635848090,-150.0,0.00011138,2]
[353186938,1739635848099,-150.0,0.00011142,2]
[353186939,1739635848108,-150.0,0.00011143,2]
[353186940,1739635848118,-150.0,0.00011144,2]
[353186941,1739635848127,-150.0,0.00011145,2]
[353186942,1739635848138,-150.0,0.00011145,2]
[353186943,1739635848148,-150.0,0.00011146,2]
[353186944,1739635848159,-150.0,0.00011146,2]
[353186945,1739635848170,-150.0,0.00011148,2]
[353186946,1739635848179,-440.05,0.00011151,2]
[353186947,1739635848190,-775.68,0.00011151,2]
[353186948,1739635848201,-440.05,0.00011151,2]
[353186949,1739635848211,-774.92,0.00011151,2]
[353186950,1739635848227,-440.05,0.00011151,2]
[353186951,1739635848237,-449.9,0.00011151,2]
[353186952,1739635848247,-273.51,0.00011151,2]
[353186953,1739635848259,-596.01,0.00011151,2]
[353186954,1739635848270,-150.0,0.00011154,2]
[353186955,1739635848280,-150.0,0.00011154,2]
[353186956,1739635848291,-500.0,0.00011154,2]
[353186957,1739635848302,-1541.64,0.00011154,2]
[353186958,1739635848312,-717.57,0.00011154,2]
[353186959,1739635848323,-1361.5,0.00011154,2]
[353186960,1739635848335,-640.09,0.00011154,2]
[353186961,1739635848346,-762.4,0.00011154,2]
[353186962,1739635848357,-1208.32,0.00011154,2]
[353186963,1739635848367,-1470.96,0.00011154,2]
[353186964,1739635848378,-953.39,0.00011154,2]
[353186965,1739635848389,-1630.15,0.00011154,2]
[353186966,1739635848400,-1493.03,0.00011154,2]
[353186967,1739635848410,-500.0,0.00011154,2]
[353186968,1739635848421,-771.25,0.00011154,2]
[353186969,1739635848432,-1485.45,0.00011154,2]
[353186970,1739635848442,-1039.35,0.00011154,2]
[353186971,1739635848453,-567.13,0.00011154,2]
[353186972,1739635848463,-765.56,0.00011154,2]
[353186973,1739635848474,-500.0,0.00011154,2]
[353186974,1739635848485,-951.97,0.00011154,2]
[353186975,1739635848496,-1887.1,0.00011154,2]
[353186976,1739635848507,-652.61,0.00011154,2]
[353186977,1739635848518,-696.9,0.00011154,2]
[353186978,1739635848528,-500.0,0.00011154,2]
[353186979,1739635848539,-1612.86,0.00011154,2]
[353186980,1739635848550,-150.0,0.00011155,2]
[353186981,1739635848561,-1161.4820537,0.00011155,2]
[353186982,1739635848572,-2555.3446289,0.00011155,2]
[353186983,1739635848583,-979.1106035,0.00011156,2]
[353186984,1739635848594,-796.7391534,0.00011156,2]
[353186985,1739635848604,-2155.1721245,0.00011156,2]
[353186986,1739635848615,-1754.9996201,0.00011156,2]
[353186987,1739635848627,-10284.06779658,0.00011158,2]
[353186988,1739635848637,-372.1304182,0.0001116,7]
[353186989,1739635848647,-1793.29999899,0.0001116,2]
[353186990,1739635848657,-2002.77,0.0001116,2]
[353186991,1739635848668,-109581.23254857,0.0001116,2]
[353186992,1739635848951,-4663.63823099,0.0001116,2]
[353186993,1739635848990,-7289.65948663,0.0001116,2]
[353186994,1739635849001,-500.0,0.0001116,2]
[353186995,1739635849010,-2000.0,0.00011163,2]
[353186996,1739635849020,-2000.0,0.00011163,2]
[353186997,1739635849029,-2000.0,0.00011163,2]
[353186998,1739635849039,-2000.0,0.00011163,2]
[353186999,1739635849048,-2000.0,0.00011163,2]
[353187000,1739635849057,-500.0,0.00011163,2]
[353187001,1739635849068,-500.0,0.00011163,2]
[353187002,1739635849078,-500.0,0.00011163,2]
[353187003,1739635849089,-500.0,0.00011163,2]
[353187004,1739635849100,-500.0,0.00011163,2]
[353187005,1739635849110,-500.0,0.00011163,2]
[353187006,1739635849121,-500.0,0.00011163,2]
[353187007,1739635849131,-160.05,0.00011163,2]
[353187008,1739635849141,-500.0,0.00011163,2]
[353187009,1739635849151,-500.0,0.00011163,2]
[353187010,1739635849161,-500.0,0.00011163,2]
[353187011,1739635849171,-500.0,0.00011163,2]
[353187012,1739635849367,-500.0,0.00011163,2]
[353187013,1739635849388,-500.0,0.00011163,2]
[353187014,1739635849399,-500.0,0.00011163,2]
[353187015,1739635849409,-500.0,0.00011163,2]
[353187016,1739635849419,-500.0,0.00011163,2]
[353187017,1739635849429,-500.0,0.00011163,2]
[353187018,1739635849439,-173.6,0.00011163,2]
[353187019,1739635849449,-137102.53404228,0.00011164,3]
[353187020,1739635849462,-13253.22423378,0.00011164,3]
[353187021,1739635849483,-2775.94000765,0.00011164,3]
[353187022,1739635849495,-5686.26989512,0.00011164,3]
[353187023,1739635849508,-1017.84759772,0.00011164,3]
[353187024,1739635849519,-649.84901329,0.00011164,3]
[353187025,1739635849531,-844.34473846,0.00011164,3]
[353187026,1739635849543,-927.740244,0.00011164,3]
[353187027,1739635849932,-523.56595865,0.00010958,2]
[353187028,1739635849941,-2034.77370302,0.00011164,3]
[353187029,1739635849953,-180928.87052375,0.00011164,3]
[353187030,1739635849964,-462.94605096,0.00011164,3]